fUST/lending_fUST_20260611
["ID","MTS","AMOUNT","RATE_DAILY","PERIOD"]
[424741976,1781112640000,-500.0,0.00019178,2]
[424741977,1781112640000,-500.0,0.00019178,2]
[424741983,1781112640000,-500.0,0.00019178,2]
[424741980,1781112640000,-492.17108664,0.00019178,2]
[424741978,1781112640000,-500.0,0.00019178,2]
[424741984,1781112640000,-168.94,0.00019178,2]
[424741985,1781112640000,-160.0,0.0001919,2]
[424741979,1781112640000,-186.6447693,0.00019178,2]
[424741981,1781112640000,-1675.88,0.00019178,2]
[424741986,1781112640000,-768.91038747,0.0001919,2]
[424741988,1781112640000,-4851.58626026,0.000192,2]
[424741990,1781112640000,-553.97026782,0.000194,2]
[424741989,1781112640000,-446.50795678,0.00019244,2]
[424741925,1781112640000,-501.74878085,0.00019178,2]
[424741969,1781112640000,-456.74478365,0.00019178,2]
[424741961,1781112640000,-430.032,0.00019178,2]
[424741974,1781112640000,-500.0,0.00019178,2]
[424741959,1781112640000,-500.0,0.00019178,2]
[424741970,1781112640000,-152.20252063,0.00019178,2]
[424741936,1781112640000,-565.81618447,0.00019178,2]
[424741939,1781112640000,-500.45707806,0.00019178,2]
[424741927,1781112640000,-502.00949849,0.00019178,2]
[424741938,1781112640000,-500.0,0.00019178,2]
[424741940,1781112640000,-500.0,0.00019178,2]
[424741941,1781112640000,-500.0,0.00019178,2]
[424741943,1781112640000,-500.0,0.00019178,2]
[424741929,1781112640000,-502.70160997,0.00019178,2]
[424741933,1781112640000,-500.0,0.00019178,2]
[424741935,1781112640000,-467.31640899,0.00019178,2]
[424741930,1781112640000,-500.56299707,0.00019178,2]
[424741944,1781112640000,-500.0,0.00019178,2]
[424741931,1781112640000,-501.31102255,0.00019178,2]
[424741957,1781112640000,-500.0,0.00019178,2]
[424741958,1781112640000,-500.0,0.00019178,2]
[424741951,1781112640000,-500.0,0.00019178,2]
[424741955,1781112640000,-500.0,0.00019178,2]
[424741956,1781112640000,-501.65195614,0.00019178,2]
[424741954,1781112640000,-569.06118537,0.00019178,2]
[424741952,1781112640000,-500.0,0.00019178,2]
[424741953,1781112640000,-501.26621167,0.00019178,2]
[424741947,1781112640000,-500.0,0.00019178,2]
[424741948,1781112640000,-500.0,0.00019178,2]
[424741950,1781112640000,-559.68094971,0.00019178,2]
[424741949,1781112640000,-500.0,0.00019178,2]
[424741946,1781112640000,-500.83133063,0.00019178,2]
[424742031,1781112641000,-4851.58626026,0.000196,2]
[424742037,1781112641000,-500.0,0.00019726,2]
[424742035,1781112641000,-500.0,0.00019726,2]
[424742032,1781112641000,-500.0,0.00019726,2]
[424742034,1781112641000,-306.21,0.00019726,2]
[424742019,1781112641000,-500.0,0.00019452,2]
[424742028,1781112641000,-300.0,0.00019589,3]
[424742029,1781112641000,-1190.62996164,0.00019599,2]
[424742026,1781112641000,-1675.88,0.00019452,2]
[424742021,1781112641000,-544.34,0.00019452,2]
[424742027,1781112641000,-168.94,0.00019452,2]
[424742036,1781112641000,-430.87,0.00019726,2]
[424742038,1781112641000,-532.31,0.00019726,2]
[424742044,1781112641000,-500.0,0.00019726,2]
[424742030,1781112641000,-553.97026782,0.000196,2]
[424742040,1781112641000,-500.0,0.00019726,2]
[424742039,1781112641000,-500.0,0.00019726,2]
[424742048,1781112641000,-500.0,0.00019726,2]
[424742049,1781112641000,-500.0,0.00019726,2]
[424742045,1781112641000,-500.0,0.00019726,2]
[424742043,1781112641000,-500.0,0.00019726,2]
[424742046,1781112641000,-500.0,0.00019726,2]
[424742041,1781112641000,-500.0,0.00019726,2]
[424742050,1781112641000,-500.0,0.00019726,2]
[424742051,1781112641000,-544.34,0.00019726,2]
[424742042,1781112641000,-500.0,0.00019726,2]
[424742016,1781112641000,-190.12,0.00019452,2]
[424742033,1781112641000,-500.0,0.00019726,2]
[424742013,1781112641000,-500.0,0.00019452,2]
[424741995,1781112641000,-500.0,0.00019452,2]
[424742017,1781112641000,-500.0,0.00019452,2]
[424741994,1781112641000,-500.0,0.00019452,2]
[424741993,1781112641000,-500.0,0.00019452,2]
[424741996,1781112641000,-500.0,0.00019452,2]
[424742052,1781112641000,-500.0,0.00019726,2]
[424741998,1781112641000,-543.99568754,0.00019452,2]
[424741997,1781112641000,-501.92709329,0.00019452,2]
[424741991,1781112641000,-4851.58626026,0.000194,2]
[424741992,1781112641000,-500.0,0.00019452,2]
[424741999,1781112641000,-500.92042829,0.00019452,2]
[424742001,1781112641000,-260.55,0.00019452,2]
[424742009,1781112641000,-263.66,0.00019452,2]
[424742005,1781112641000,-307.06,0.00019452,2]
[424742002,1781112641000,-500.0,0.00019452,2]
[424742011,1781112641000,-500.0,0.00019452,2]
[424742006,1781112641000,-486.07,0.00019452,2]
[424742004,1781112641000,-500.0,0.00019452,2]
[424742003,1781112641000,-500.0,0.00019452,2]
[424742000,1781112641000,-500.0,0.00019452,2]
[424742007,1781112641000,-500.0,0.00019452,2]
[424742012,1781112641000,-500.0,0.00019452,2]
[424742010,1781112641000,-500.0,0.00019452,2]
[424742008,1781112641000,-500.0,0.00019452,2]
[424742014,1781112641000,-500.0,0.00019452,2]
[424742022,1781112641000,-500.0,0.00019452,2]
[424742023,1781112641000,-500.0,0.00019452,2]
[424742025,1781112641000,-500.0,0.00019452,2]
[424742024,1781112641000,-500.0,0.00019452,2]
[424742015,1781112641000,-500.0,0.00019452,2]
[424742020,1781112641000,-373.52,0.00019452,2]
[424742018,1781112641000,-500.0,0.00019452,2]
[424742053,1781112641000,-500.0,0.00019726,2]
[424742047,1781112641000,-500.0,0.00019726,2]
[424742057,1781112641000,-168.94,0.00019726,2]
[424742088,1781112641000,-500.0,0.00020273,2]
[424742090,1781112641000,-500.0,0.00020273,2]
[424742101,1781112641000,-500.0,0.00020273,2]
[424742091,1781112641000,-500.0,0.00020273,2]
[424742093,1781112641000,-500.0,0.00020273,2]
[424742094,1781112641000,-500.0,0.00020273,2]
[424742092,1781112641000,-271.04237931,0.00020273,2]
[424742095,1781112641000,-500.0,0.00020273,2]
[424742097,1781112641000,-500.0,0.00020273,2]
[424742099,1781112641000,-500.0,0.00020273,2]
[424742100,1781112641000,-544.34,0.00020273,2]
[424742102,1781112641000,-500.0,0.00020273,2]
[424742098,1781112641000,-500.0,0.00020273,2]
[424742096,1781112641000,-500.0,0.00020273,2]
[424742103,1781112641000,-500.0,0.00020273,2]
[424742106,1781112641000,-168.94,0.00020274,2]
[424742105,1781112641000,-1675.88,0.00020273,2]
[424742104,1781112641000,-500.0,0.00020273,2]
[424742107,1781112641000,-4851.58626026,0.000204,2]
[424742108,1781112641000,-500.0,0.00020547,2]
[424742113,1781112641000,-500.0,0.00020547,2]
[424742111,1781112641000,-500.0,0.00020547,2]
[424742114,1781112641000,-500.0,0.00020547,2]
[424742110,1781112641000,-500.0,0.00020547,2]
[424742109,1781112641000,-500.0,0.00020547,2]
[424742115,1781112641000,-500.0,0.00020547,2]
[424742112,1781112641000,-500.0,0.00020547,2]
[424742117,1781112641000,-500.0,0.00020547,2]
[424742054,1781112641000,-500.0,0.00019726,2]
[424742087,1781112641000,-284.02,0.00020273,2]
[424742089,1781112641000,-577.51328019,0.00020273,2]
[424742116,1781112641000,-500.0,0.00020547,2]
[424742081,1781112641000,-500.0,0.0002,2]
[424742080,1781112641000,-500.0,0.0002,2]
[424742055,1781112641000,-500.0,0.00019726,2]
[424742061,1781112641000,-4851.58626026,0.0002,2]
[424742059,1781112641000,-4851.58626026,0.000198,2]
[424742062,1781112641000,-500.0,0.0002,2]
[424742060,1781112641000,-553.97026782,0.0002,2]
[424742064,1781112641000,-309.99562977,0.0002,2]
[424742058,1781112641000,-553.97026782,0.000198,2]
[424742063,1781112641000,-168.94,0.0002,2]
[424742065,1781112641000,-500.0,0.0002,2]
[424742067,1781112641000,-500.0,0.0002,2]
[424742078,1781112641000,-500.0,0.0002,2]
[424742077,1781112641000,-500.0,0.0002,2]
[424742069,1781112641000,-500.0,0.0002,2]
[424742056,1781112641000,-1675.88,0.00019726,2]
[424742066,1781112641000,-500.0,0.0002,2]
[424742086,1781112641000,-500.0,0.00020273,2]
[424742085,1781112641000,-4851.58626026,0.000202,2]
[424742083,1781112641000,-500.0,0.0002,2]
[424742084,1781112641000,-1675.88,0.0002,2]
[424742068,1781112641000,-372.97,0.0002,2]
[424742079,1781112641000,-544.34,0.0002,2]
[424742082,1781112641000,-500.0,0.0002,2]
[424742076,1781112641000,-500.0,0.0002,2]
[424742074,1781112641000,-500.0,0.0002,2]
[424742072,1781112641000,-500.0,0.0002,2]
[424742073,1781112641000,-500.0,0.0002,2]
[424742071,1781112641000,-500.0,0.0002,2]
[424742070,1781112641000,-500.0,0.0002,2]
[424742075,1781112641000,-500.0,0.0002,2]
[424742156,1781112642000,-500.0,0.00021095,2]
[424742159,1781112642000,-500.0,0.00021095,2]
[424742158,1781112642000,-324.23422228,0.00021095,2]
[424742168,1781112642000,-500.0,0.00021369,2]
[424742157,1781112642000,-500.0,0.00021095,2]
[424742146,1781112642000,-2208.0,0.0002086,2]
[424742155,1781112642000,-500.0,0.00021095,2]
[424742150,1781112642000,-4851.58626026,0.00021,2]
[424742149,1781112642000,-186.0,0.0002086,2]
[424742145,1781112642000,-168.94,0.00020822,2]
[424742147,1781112642000,-3619.0,0.0002086,2]
[424742166,1781112642000,-1675.88,0.00021095,2]
[424742167,1781112642000,-168.94,0.00021096,2]
[424742181,1781112642000,-1675.88,0.00021369,2]
[424742163,1781112642000,-500.0,0.00021095,2]
[424742164,1781112642000,-500.0,0.00021095,2]
[424742162,1781112642000,-500.0,0.00021095,2]
[424742160,1781112642000,-152.52135603,0.00021095,2]
[424742165,1781112642000,-500.0,0.00021095,2]
[424742174,1781112642000,-500.0,0.00021369,2]
[424742170,1781112642000,-500.0,0.00021369,2]
[424742171,1781112642000,-500.0,0.00021369,2]
[424742176,1781112642000,-544.34,0.00021369,2]
[424742177,1781112642000,-500.0,0.00021369,2]
[424742175,1781112642000,-500.0,0.00021369,2]
[424742173,1781112642000,-500.0,0.00021369,2]
[424742148,1781112642000,-444.0,0.0002086,2]
[424742161,1781112642000,-544.34,0.00021095,2]
[424742143,1781112642000,-500.0,0.00020821,2]
[424742131,1781112642000,-500.0,0.00020821,2]
[424742144,1781112642000,-1675.88,0.00020821,2]
[424742179,1781112642000,-181.10072625,0.00021369,2]
[424742127,1781112642000,-4851.58626026,0.000208,2]
[424742128,1781112642000,-500.0,0.00020821,2]
[424742118,1781112642000,-500.0,0.00020547,2]
[424742119,1781112642000,-544.34,0.00020547,2]
[424742120,1781112642000,-500.0,0.00020547,2]
[424742122,1781112642000,-500.0,0.00020547,2]
[424742124,1781112642000,-1675.88,0.00020547,2]
[424742123,1781112642000,-500.0,0.00020547,2]
[424742121,1781112642000,-500.0,0.00020547,2]
[424742125,1781112642000,-168.94,0.00020548,2]
[424742126,1781112642000,-4851.58626026,0.000206,2]
[424742129,1781112642000,-500.0,0.00020821,2]
[424742142,1781112642000,-500.0,0.00020821,2]
[424742140,1781112642000,-500.0,0.00020821,2]
[424742130,1781112642000,-500.0,0.00020821,2]
[424742133,1781112642000,-500.0,0.00020821,2]
[424742141,1781112642000,-500.0,0.00020821,2]
[424742138,1781112642000,-500.0,0.00020821,2]
[424742135,1781112642000,-500.0,0.00020821,2]
[424742136,1781112642000,-400.64523453,0.00020821,2]
[424742134,1781112642000,-500.0,0.00020821,2]
[424742139,1781112642000,-544.34,0.00020821,2]
[424742137,1781112642000,-500.0,0.00020821,2]
[424742151,1781112642000,-500.0,0.00021095,2]
[424742152,1781112642000,-500.0,0.00021095,2]
[424742153,1781112642000,-500.0,0.00021095,2]
[424742154,1781112642000,-500.0,0.00021095,2]
[424742132,1781112642000,-500.0,0.00020821,2]
[424742172,1781112642000,-500.0,0.00021369,2]
[424742230,1781112642000,-1675.88,0.00022465,2]
[424742169,1781112642000,-500.0,0.00021369,2]
[424742208,1781112642000,-360.57778076,0.00021917,2]
[424742212,1781112642000,-390.1333,0.00021918,2]
[424742215,1781112642000,-500.0,0.00022191,2]
[424742217,1781112642000,-500.0,0.00022191,2]
[424742219,1781112642000,-544.34,0.00022191,2]
[424742221,1781112642000,-500.0,0.00022191,2]
[424742218,1781112642000,-500.0,0.00022191,2]
[424742224,1781112642000,-1675.88,0.00022191,2]
[424742223,1781112642000,-500.0,0.00022191,2]
[424742216,1781112642000,-500.0,0.00022191,2]
[424742229,1781112642000,-500.0,0.00022465,2]
[424742225,1781112642000,-151.0,0.00022337,2]
[424742226,1781112642000,-500.0,0.00022465,2]
[424742210,1781112642000,-500.0,0.00021917,2]
[424742228,1781112642000,-544.34,0.00022465,2]
[424742242,1781112642000,-1675.88,0.00023013,2]
[424742232,1781112642000,-316.0591159,0.00022683,2]
[424742241,1781112642000,-500.0,0.00023013,2]
[424742243,1781112642000,-469.14260794,0.00023287,2]
[424742244,1781112642000,-544.34,0.00023287,2]
[424742233,1781112642000,-500.0,0.00022739,2]
[424742235,1781112642000,-500.0,0.00022739,2]
[424742238,1781112642000,-600.0,0.00022914,10]
[424742234,1781112642000,-544.34,0.00022739,2]
[424742239,1781112642000,-500.0,0.00023013,2]
[424742240,1781112642000,-544.34,0.00023013,2]
[424742237,1781112642000,-151.0,0.00022885,2]
[424742180,1781112642000,-500.0,0.00021369,2]
[424742227,1781112642000,-329.03810189,0.00022465,2]
[424742209,1781112642000,-500.0,0.00021917,2]
[424742236,1781112642000,-1675.88,0.00022739,2]
[424742207,1781112642000,-544.34,0.00021917,2]
[424742211,1781112642000,-1675.88,0.00021917,2]
[424742178,1781112642000,-500.0,0.00021369,2]
[424742182,1781112642000,-168.94,0.0002137,2]
[424742184,1781112642000,-500.0,0.00021643,2]
[424742186,1781112642000,-500.0,0.00021643,2]
[424742185,1781112642000,-500.0,0.00021643,2]
[424742187,1781112642000,-500.0,0.00021643,2]
[424742189,1781112642000,-553.51656259,0.00021643,2]
[424742188,1781112642000,-500.0,0.00021643,2]
[424742190,1781112642000,-500.0,0.00021643,2]
[424742194,1781112642000,-500.0,0.00021643,2]
[424742195,1781112642000,-1675.88,0.00021643,2]
[424742200,1781112642000,-550.0,0.00021917,2]
[424742193,1781112642000,-500.0,0.00021643,2]
[424742183,1781112642000,-500.0,0.00021643,2]
[424742196,1781112642000,-168.94,0.00021644,2]
[424742192,1781112642000,-500.0,0.00021643,2]
[424742204,1781112642000,-500.0,0.00021917,2]
[424742206,1781112642000,-500.0,0.00021917,2]
[424742213,1781112642000,-500.0,0.00022191,2]
[424742214,1781112642000,-500.0,0.00022191,2]
[424742202,1781112642000,-310.0,0.00021917,2]
[424742197,1781112642000,-151.0,0.00021789,2]
[424742201,1781112642000,-500.0,0.00021917,2]
[424742203,1781112642000,-500.0,0.00021917,2]
[424742191,1781112642000,-544.34,0.00021643,2]
[424742205,1781112642000,-500.0,0.00021917,2]
[424742198,1781112642000,-1000.0,0.00021917,2]
[424742199,1781112642000,-500.0,0.00021917,2]
[424742280,1781112643000,-500.0,0.00024384,2]
[424742285,1781112643000,-534.06105806,0.00024552,2]
[424742284,1781112643000,-199.28979409,0.00024529,2]
[424742277,1781112643000,-500.0,0.00024384,2]
[424742276,1781112643000,-1675.88,0.00024383,2]
[424742273,1781112643000,-399.0,0.000242,2]
[424742278,1781112643000,-500.0,0.00024384,2]
[424742279,1781112643000,-500.0,0.00024384,2]
[424742281,1781112643000,-647.69834119,0.00024384,2]
[424742283,1781112643000,-528.07228931,0.00024384,2]
[424742282,1781112643000,-500.0,0.00024384,2]
[424742301,1781112643000,-390.1333,0.00024658,5]
[424742288,1781112643000,-544.34,0.00024657,2]
[424742289,1781112643000,-1675.88,0.00024657,2]
[424742291,1781112643000,-380.0,0.00024658,2]
[424742287,1781112643000,-151.0,0.00024657,2]
[424742300,1781112643000,-430.032,0.00024658,6]
[424742303,1781112643000,-151.0,0.00024831,2]
[424742293,1781112643000,-180.82696464,0.00024658,2]
[424742294,1781112643000,-325.16304782,0.00024658,2]
[424742299,1781112643000,-352.47761791,0.00024658,2]
[424742274,1781112643000,-544.34,0.00024383,2]
[424742302,1781112643000,-151.0,0.00024831,2]
[424742286,1781112643000,-151.0,0.00024657,2]
[424742268,1781112643000,-158.41200721,0.0002411,2]
[424742254,1781112643000,-500.0,0.00023835,2]
[424742272,1781112643000,-390.1333,0.0002411,6]
[424742297,1781112643000,-196.01691575,0.00024658,2]
[424742245,1781112643000,-500.0,0.00023287,2]
[424742248,1781112643000,-151.0,0.00023433,2]
[424742249,1781112643000,-544.34,0.00023561,2]
[424742251,1781112643000,-1675.88,0.00023561,2]
[424742250,1781112643000,-500.0,0.00023561,2]
[424742247,1781112643000,-1675.88,0.00023287,2]
[424742257,1781112643000,-3619.0,0.0002386,2]
[424742256,1781112643000,-170.0,0.0002386,2]
[424742255,1781112643000,-1675.88,0.00023835,2]
[424742253,1781112643000,-544.34,0.00023835,2]
[424742259,1781112643000,-186.0,0.0002386,2]
[424742258,1781112643000,-444.0,0.0002386,2]
[424742260,1781112643000,-151.0,0.00023981,2]
[424742264,1781112643000,-500.0,0.00024109,9]
[424742261,1781112643000,-150.0,0.000241,5]
[424742262,1781112643000,-430.032,0.000241,5]
[424742265,1781112643000,-544.34,0.00024109,2]
[424742267,1781112643000,-1675.88,0.00024109,2]
[424742263,1781112643000,-500.0,0.00024102,9]
[424742266,1781112643000,-500.0,0.00024109,2]
[424742269,1781112643000,-151.0,0.0002411,6]
[424742270,1781112643000,-250.0,0.0002411,2]
[424742271,1781112643000,-180.0,0.0002411,2]
[424742307,1781112643000,-1122.155708,0.0002498,5]
[424742275,1781112643000,-329.15,0.00024383,2]
[424742309,1781112643000,-348.0,0.00025,7]
[424742337,1781112643000,-2829.3167452,0.00025287,2]
[424742336,1781112643000,-1683.4912019,0.00025287,2]
[424742333,1781112643000,-800.0,0.00025248,2]
[424742339,1781112643000,-800.0,0.00025291,2]
[424742335,1781112643000,-800.0,0.00025263,2]
[424742340,1781112643000,-800.0,0.00025293,2]
[424742341,1781112643000,-591.75589886,0.0002531,2]
[424742338,1781112643000,-458.27607633,0.00025289,2]
[424742343,1781112643000,-800.0,0.0002532,2]
[424742344,1781112643000,-800.0,0.00025353,2]
[424742345,1781112643000,-800.0,0.00025355,2]
[424742351,1781112643000,-19321.08250199,0.00025444,2]
[424742342,1781112643000,-208.24410114,0.0002531,2]
[424742346,1781112643000,-800.0,0.00025357,2]
[424742349,1781112643000,-800.0,0.00025393,2]
[424742347,1781112643000,-800.0,0.00025359,2]
[424742348,1781112643000,-800.0,0.0002536,2]
[424742350,1781112643000,-9527.03106703,0.00025444,2]
[424742353,1781112643000,-205.48082706,0.00024681,2]
[424742355,1781112643000,-1000.0,0.00025444,2]
[424742354,1781112643000,-5707.96560682,0.00025444,2]
[424742356,1781112643000,-275.79946348,0.000187,2]
[424742357,1781112643000,-811.81205752,0.000187,2]
[424742332,1781112643000,-800.0,0.00025246,2]
[424742334,1781112643000,-300.0,0.00025249,6]
[424742352,1781112643000,-17595.05056798,0.00025444,2]
[424742359,1781112643000,-607.16244248,0.000192,2]
[424742331,1781112643000,-800.0,0.00025244,2]
[424742314,1781112643000,-800.0,0.00025122,2]
[424742312,1781112643000,-800.0,0.0002511,2]
[424742315,1781112643000,-800.0,0.00025158,2]
[424742313,1781112643000,-534.06105806,0.00025114,2]
[424742304,1781112643000,-544.34,0.00024931,2]
[424742305,1781112643000,-1675.88,0.00024931,2]
[424742310,1781112643000,-800.0,0.00025098,2]
[424742316,1781112643000,-800.0,0.00025173,2]
[424742308,1781112643000,-1000.0,0.00025,5]
[424742311,1781112643000,-800.0,0.00025105,2]
[424742318,1781112643000,-800.0,0.00025178,2]
[424742306,1781112643000,-348.0,0.00024932,7]
[424742323,1781112643000,-800.0,0.00025209,2]
[424742329,1781112643000,-1108.9304092,0.0002524,2]
[424742330,1781112643000,-5384.9329931,0.0002524,2]
[424742325,1781112643000,-800.0,0.00025221,2]
[424742326,1781112643000,-800.0,0.00025233,2]
[424742327,1781112643000,-800.0,0.00025236,2]
[424742328,1781112643000,-800.0,0.00025239,2]
[424742320,1781112643000,-544.34,0.00025205,2]
[424742324,1781112643000,-800.0,0.00025212,2]
[424742321,1781112643000,-1675.88,0.00025205,2]
[424742319,1781112643000,-800.0,0.00025199,2]
[424742317,1781112643000,-800.0,0.00025178,2]
[424742322,1781112643000,-720.0,0.00025206,10]
[424742369,1781112646000,-20010.37165874,0.00025444,2]
[424742367,1781112646000,-1000.0,0.000202,2]
[424742365,1781112646000,-392.83755752,0.000192,2]
[424742366,1781112646000,-1000.0,0.000197,2]
[424742368,1781112646000,-1000.0,0.000207,2]
[424742371,1781112662000,492.6046878,0.00010992,2]
[424742370,1781112662000,500.0,0.00010992,2]
[424742372,1781112688000,-500.0,0.00010992,2]
[424742373,1781112705000,-3995.44628924,0.00011098,2]
[424742374,1781112722000,-500.0,0.00010995,2]
[424742375,1781112776000,-1004.55371076,0.00011098,2]
[424742378,1781112777000,-274.84628924,0.00011213,2]
[424742376,1781112777000,-600.0,0.0001121,2]
[424742377,1781112777000,-300.0,0.00011213,2]
[424742380,1781112807000,-153.53628924,0.00011213,2]
[424742379,1781112807000,-25.15371076,0.00011213,2]
[424742382,1781112827000,-78.14428924,0.00011213,2]
[424742381,1781112827000,-146.46371076,0.00011213,2]
[424742383,1781112848000,-172.958,0.00011213,2]
[424742384,1781112868000,-864.0,0.00011101,2]
[424742385,1781112900000,-273.425,0.0001099,2]
[424742386,1781112917000,-195.925,0.0001099,2]
[424742387,1781112944000,-1053.906,0.0001099,2]
[424742388,1781112975000,-490.755,0.0001099,2]
[424742389,1781113004000,-971.73,0.0001099,2]
[424742390,1781113025000,-802.63,0.0001099,2]
[424742392,1781113045000,-1053.91,0.0001099,2]
[424742394,1781113100000,-2246.36099125,0.0001088,2]
[424742393,1781113100000,-1787.88900875,0.00010771,2]
[424742396,1781113138000,-323.965,0.00010771,2]
[424742397,1781113158000,-443.478,0.00010771,2]
[424742398,1781113180000,-152.0,0.00010771,2]
[424742400,1781113229000,-189.46804075,0.0001088,2]
[424742399,1781113229000,-52.28735925,0.00010771,2]
[424742401,1781113267000,-1009.19858094,0.0001163,2]
[424742402,1781113284000,-3177.91141906,0.00011747,2]
[424742403,1781113307000,-1457.18,0.00011747,2]
[424742405,1781113703000,158.5477027,0.00020705,120]
[424742440,1781113832000,-1166.7211725,0.00011748,2]
[424742437,1781113832000,-3493.17958051,0.00011748,2]
[424742479,1781113838000,-340.09924699,0.00011748,2]
[424742481,1781113838000,-300.0,0.00011868,2]
[424742482,1781113838000,-300.0,0.00011868,2]
[424742480,1781113838000,-300.0,0.00011867,2]
[424742484,1781113838000,-300.0,0.00011868,2]
[424742485,1781113838000,-300.0,0.00011868,2]
[424742483,1781113838000,-300.0,0.00011868,2]
[424742487,1781113838000,-300.0,0.00011868,2]
[424742489,1781113838000,-300.0,0.00011868,2]
[424742490,1781113838000,-300.0,0.00011868,2]
[424742492,1781113838000,-300.0,0.00011868,2]
[424742488,1781113838000,-300.0,0.00011868,2]
[424742491,1781113838000,-300.0,0.00011868,2]
[424742486,1781113838000,-300.0,0.00011868,2]
[424742535,1781113839000,-500.0,0.00016042,2]
[424742536,1781113839000,-500.0,0.00016042,2]
[424742530,1781113839000,-639.42363853,0.00016042,2]
[424742531,1781113839000,-500.0,0.00016042,2]
[424742523,1781113839000,-500.0,0.00016042,2]
[424742525,1781113839000,-500.0,0.00016042,2]
[424742527,1781113839000,-500.0,0.00016042,2]
[424742529,1781113839000,-500.0,0.00016042,2]
[424742528,1781113839000,-500.0,0.00016042,2]
[424742524,1781113839000,-500.0,0.00016042,2]
[424742519,1781113839000,-374.77098935,0.00016041,2]
[424742538,1781113839000,-500.0,0.00016042,2]
[424742545,1781113839000,-500.0,0.00016042,2]
[424742532,1781113839000,-500.0,0.00016042,2]
[424742537,1781113839000,-500.0,0.00016042,2]
[424742533,1781113839000,-500.0,0.00016042,2]
[424742534,1781113839000,-500.0,0.00016042,2]
[424742540,1781113839000,-500.0,0.00016042,2]
[424742541,1781113839000,-557.01503251,0.00016042,2]
[424742548,1781113839000,-431.39819641,0.00016045,2]
[424742544,1781113839000,-500.0,0.00016042,2]
[424742547,1781113839000,-381.08068765,0.00016045,2]
[424742543,1781113839000,-500.0,0.00016042,2]
[424742526,1781113839000,-500.0,0.00016042,2]
[424742550,1781113839000,-273.4248207,0.00016814,2]
[424742542,1781113839000,-500.0,0.00016042,2]
[424742539,1781113839000,-500.0,0.00016042,2]
[424742522,1781113839000,-314.03709479,0.00016042,2]
[424742509,1781113839000,-190.54034383,0.00015735,2]
[424742520,1781113839000,-431.51065247,0.00016041,2]
[424742549,1781113839000,-271.56,0.00016806,2]
[424742493,1781113839000,-300.0,0.00011868,2]
[424742494,1781113839000,-300.0,0.00011868,2]
[424742497,1781113839000,-407.0,0.00013029,2]
[424742499,1781113839000,-864.0,0.0001436,2]
[424742496,1781113839000,-600.0,0.00011868,2]
[424742495,1781113839000,-300.0,0.00011868,2]
[424742498,1781113839000,-720.0,0.00013055,2]
[424742503,1781113839000,-227.05179068,0.0001573,2]
[424742504,1781113839000,-253.4357762,0.0001573,2]
[424742501,1781113839000,-250.0,0.00015391,2]
[424742502,1781113839000,-169.0,0.00015699,3]
[424742518,1781113839000,-388.52578727,0.00016041,2]